[Event "Paracin Open 2022"]
[Site "Paracin"]
[Date "2022.07.13"]
[Round "6.12"]
[White "Suleymenov, Alisher"]
[Black "Sharan, Rao"]
[Result "1-0"]
[ECO "B12"]
[WhiteElo "2467"]
[BlackElo "2342"]
[Annotator "ChessBase"]
[PlyCount "109"]
[EventDate "2022.07.08"]
[EventCountry "SRB"]
[SourceTitle "playchess.com"]
[Source "ChessBase"]
[SourceQuality "1"]
[TimeControl "5400+30"]

1. e4 {[%emt 0:00:04]} c6 {[%emt 0:00:11]} 2. d4 {[%emt 0:00:06]} d5 {[%emt 0:00:03]} 3. e5 {[%emt 0:00:04]} Bf5 {[%emt 0:00:21]} 4. Nf3 {[%emt 0:00:07]} e6 {[%emt 0:01:25]} 5. Be2 {[%emt 0:00:15]} h6 {[%emt 0:01:58]} 6. O-O {[%emt 0:05:30]} Nd7 {[%emt 0:10:26]} 7. a4 {[%emt 0:00:08]} g5 {[%emt 0:04:18]} 8. a5 {[%emt 0:00:05]} a6 {[%emt 0:02:27]} 9. Ne1 {[%emt 0:16:35]} c5 {[%emt 0:03:56]} 10. c4 {[%emt 0:04:43]} dxc4 {[%emt 0:12:31]} 11. Nd2 {[%emt 0:00:47]} cxd4 {[%emt 0:05:07]} 12. Nxc4 {[%emt 0:00:27]} Bc5 {[%emt 0:01:58]} 13. Nd3 {[%emt 0:13:19]} Bxd3 {[%emt 0:01:48]} 14. Bxd3 {[%emt 0:01:33]} Ne7 {[%emt 0:00:51]} 15. b4 {[%emt 0:00:50]} Bxb4 {[%emt 0:02:53]} 16. Rb1 {[%emt 0:00:08]} Nd5 {[%emt 0:06:44]} 17. Rxb4 {[%emt 0:03:01]} Nxb4 {[%emt 0:00:06]} 18. Ba3 {[%emt 0:00:17]} Nxe5 {[%emt 0:03:53]} 19. Nxe5 {[%emt 0:05:07]} Qxa5 {[%emt 0:03:44]} 20. Qb3 {[%emt 0:04:49]} Qxe5 {[%emt 0:03:29]} 21. Qxb4 {[%emt 0:00:07]} O-O-O {[%emt 0:01:00]} 22. Bxa6 {[%emt 0:05:31]} Qe4 {[%emt 0:09:12]} 23. Re1 {[%emt 0:05:00]} Qxe1+ {[%emt 0:02:33]} 24. Qxe1 {[%emt 0:00:06]} bxa6 {[%emt 0:00:02]} 25. Bb2 {[%emt 0:07:22]} Rd5 {[%emt 0:01:40]} 26. Qa1 {[%emt 0:06:50]} Kb7 {[%emt 0:01:45]} 27. Kf1 {[%emt 0:00:23]} Rhd8 {[%emt 0:01:07]} 28. Ke2 {[%emt 0:01:50]} f5 {[%emt 0:02:39]} 29. Qa3 {[%emt 0:08:46]} R8d7 {[%emt 0:02:43]} 30. Qd3 {[%emt 0:02:54]} R7d6 {[%emt 0:01:21]} 31. Kd2 {[%emt 0:03:15]} Rb6 {[%emt 0:00:37]} 32. Qa3 {[%emt 0:00:27]} Rd7 {[%emt 0:01:20]} 33. Qf3+ {[%emt 0:01:34]} Rd5 {[%emt 0:00:20]} 34. Ba3 {[%emt 0:00:52]} Rc6 {[%emt 0:00:22]} 35. Qh5 {[%emt 0:02:59]} d3 {[%emt 0:00:59]} 36. Qf7+ {[%emt 0:00:11]} Kb6 {[%emt 0:00:51]} 37. Qe8 {[%emt 0:00:24]} Kc7 {[%emt 0:06:51]} 38. Qa8 {[%emt 0:01:29]} Rc2+ {[%emt 0:02:45]} 39. Kd1 {[%emt 0:00:01]} a5 {[%emt 0:01:00]} 40. Qa7+ {[%emt 0:00:31]} Kc6 {[%emt 0:00:01]} 41. Qa6+ {[%emt 0:01:37]} Kd7 {[%emt 0:00:09]} 42. Qb7+ {[%emt 0:00:19]} Rc7 {[%emt 0:00:06]} 43. Qb2 {[%emt 0:00:15]} d2 {[%emt 0:02:18]} 44. Qg7+ {[%emt 0:00:09]} Kc8 {[%emt 0:00:01]} 45. Qg8+ {[%emt 0:00:19]} Kb7 {[%emt 0:00:43]} 46. Qxe6 {[%emt 0:00:15]} Rcd7 {[%emt 0:00:01]} 47. Bc5 {[%emt 0:01:05]} Kb8 {[%emt 0:01:33]} 48. Qb6+ {[%emt 0:00:27]} Kc8 {[%emt 0:00:50]} 49. Qc6+ {[%emt 0:00:30]} Kb8 {[%emt 0:01:11]} 50. Bb6 {[%emt 0:00:38]} Rd3 {[%emt 0:00:26]} 51. Bc7+ {[%emt 0:00:14]} Rxc7 {[%emt 0:00:47]} 52. Qb5+ {[%emt 0:00:02]} Kc8 {[%emt 0:00:34]} 53. Qxd3 {[%emt 0:00:01]} Rd7 {[%emt 0:00:23]} 54. Qxf5 {[%emt 0:00:23]} Kc7 {[%emt 0:00:11]} 55. Qxa5+ {[%emt 0:00:06]} 1-0

[Event "Paracin Open 2022"]
[Site "Paracin"]
[Date "2022.07.13"]
[Round "6.13"]
[White "Zajic, Milan"]
[Black "Han, Yichen"]
[Result "0-1"]
[ECO "C84"]
[WhiteElo "2431"]
[BlackElo "2286"]
[Annotator "ChessBase"]
[PlyCount "96"]
[EventDate "2022.07.08"]
[EventCountry "SRB"]
[SourceTitle "playchess.com"]
[Source "ChessBase"]
[SourceQuality "1"]
[TimeControl "5400+30"]

1. e4 {[%emt 0:00:02]} e5 {[%emt 0:00:55]} 2. Nf3 {[%emt 0:00:19]} Nc6 {[%emt 0:00:05]} 3. Bb5 {[%emt 0:00:05]} a6 {[%emt 0:00:28]} 4. Ba4 {[%emt 0:00:02]} Nf6 {[%emt 0:00:24]} 5. O-O {[%emt 0:00:06]} Be7 {[%emt 0:00:19]} 6. d3 {[%emt 0:01:55]} b5 {[%emt 0:01:14]} 7. Bb3 {[%emt 0:00:01]} d6 {[%emt 0:00:24]} 8. a3 {[%emt 0:02:07]} Na5 {[%emt 0:01:39]} 9. Ba2 {[%emt 0:00:10]} c5 {[%emt 0:00:26]} 10. Nc3 {[%emt 0:00:53]} Be6 {[%emt 0:02:24]} 11. Bg5 {[%emt 0:04:58]} O-O {[%emt 0:03:35]} 12. b4 {[%emt 0:06:04]} Nc6 {[%emt 0:06:42]} 13. Nd5 {[%emt 0:15:23]} Rc8 {[%emt 0:15:32]} 14. Qd2 {[%emt 0:08:58]} Bxd5 {[%emt 0:05:25]} 15. exd5 {[%emt 0:08:11]} Nd4 {[%emt 0:00:23]} 16. Nxd4 {[%emt 0:00:34]} cxd4 {[%emt 0:00:27]} 17. Bxf6 {[%emt 0:01:04]} Bxf6 {[%emt 0:00:08]} 18. a4 {[%emt 0:07:04]} Qb6 {[%emt 0:04:38]} 19. Bb3 {[%emt 0:06:23]} Rc3 {[%emt 0:02:25]} 20. axb5 {[%emt 0:00:07]} axb5 {[%emt 0:00:58]} 21. Qe2 {[%emt 0:06:13]} Qb7 {[%emt 0:05:25]} 22. Ra2 {[%emt 0:04:51]} Bd8 {[%emt 0:06:28]} 23. f4 {[%emt 0:02:32]} Re8 {[%emt 0:07:25]} 24. Qe4 {[%emt 0:07:38]} Rc8 {[%emt 0:02:54]} 25. g3 {[%emt 0:01:19]} Bf6 {[%emt 0:03:01]} 26. f5 {[%emt 0:05:58]} Ra8 {[%emt 0:01:04]} 27. Rxa8 {[%emt 0:03:53]} Qxa8 {[%emt 0:01:11]} 28. h4 {[%emt 0:00:05]} Qa3 {[%emt 0:03:18]} 29. Kg2 {[%emt 0:01:34]} Qxb4 {[%emt 0:01:58]} 30. Kh3 {[%emt 0:00:15]} h6 {[%emt 0:06:05]} 31. Ra1 {[%emt 0:02:39]} Rc8 {[%emt 0:04:18]} 32. Qe2 {[%emt 0:01:41]} Re8 {[%emt 0:02:49]} 33. Qe4 {[%emt 0:00:44]} Be7 {[%emt 0:00:28]} 34. Qe2 {[%emt 0:01:04]} Qc3 {[%emt 0:00:44]} 35. Ra7 {[%emt 0:00:27]} Bf6 {[%emt 0:01:02]} 36. Qh5 {[%emt 0:00:23]} Rf8 {[%emt 0:00:48]} 37. Qe2 {[%emt 0:00:11]} Qb2 {[%emt 0:00:38]} 38. Qd1 {[%emt 0:00:55]} Rc8 {[%emt 0:01:01]} 39. Qh5 {[%emt 0:00:33]} Rf8 {[%emt 0:01:30]} 40. Qd1 {[%emt 0:00:12]} e4 {[%emt 0:00:28]} 41. dxe4 {[%emt 0:00:33]} Qc3 {[%emt 0:00:38]} 42. Ra6 {[%emt 0:02:18]} Be5 {[%emt 0:02:08]} 43. Qd3 {[%emt 0:00:46]} Qe1 {[%emt 0:00:06]} 44. Kg2 {[%emt 0:00:28]} Rc8 {[%emt 0:00:38]} 45. Rc6 {[%emt 0:00:18]} Ra8 {[%emt 0:00:11]} 46. Qf3 {[%emt 0:00:47]} Ra1 {[%emt 0:01:11]} 47. Kh3 {[%emt 0:00:02]} Qe3 {[%emt 0:00:59]} 48. Qg2 {[%emt 0:01:09]} Rg1 {[%emt 0:00:34]} 0-1

[Event "Paracin Open 2022"]
[Site "Paracin"]
[Date "2022.07.13"]
[Round "6.14"]
[White "Gan-Erdene, Sugar"]
[Black "Tsaknakis, Zisis"]
[Result "1/2-1/2"]
[ECO "E04"]
[WhiteElo "2428"]
[BlackElo "2266"]
[Annotator "ChessBase"]
[PlyCount "129"]
[EventDate "2022.07.08"]
[EventCountry "SRB"]
[SourceTitle "playchess.com"]
[Source "ChessBase"]
[SourceQuality "1"]
[TimeControl "5400+30"]

1. d4 {[%emt 0:00:04]} d5 {[%emt 0:03:33]} 2. c4 {[%emt 0:00:09]} e6 {[%emt 0:00:06]} 3. Nf3 {[%emt 0:00:17]} Nf6 {[%emt 0:00:04]} 4. g3 {[%emt 0:00:39]} dxc4 {[%emt 0:00:02]} 5. Bg2 {[%emt 0:00:46]} c5 {[%emt 0:00:03]} 6. O-O {[%emt 0:03:18]} Nc6 {[%emt 0:00:02]} 7. dxc5 {[%emt 0:01:48]} Qxd1 {[%emt 0:00:08]} 8. Rxd1 {[%emt 0:00:04]} Bxc5 {[%emt 0:00:07]} 9. Nbd2 {[%emt 0:00:46]} c3 {[%emt 0:01:58]} 10. bxc3 {[%emt 0:00:05]} O-O {[%emt 0:00:07]} 11. Nb3 {[%emt 0:03:18]} Be7 {[%emt 0:00:02]} 12. Nfd4 {[%emt 0:08:43]} Nxd4 {[%emt 0:00:19]} 13. cxd4 {[%emt 0:20:43]} Nd5 {[%emt 0:00:14]} 14. Bb2 {[%emt 0:11:16]} f5 {[%emt 0:00:02]} 15. e4 {[%emt 0:10:43]} fxe4 {[%emt 0:00:42]} 16. Bxe4 {[%emt 0:00:23]} b6 {[%emt 0:06:34]} 17. Bg2 {[%emt 0:00:37]} Bd7 {[%emt 0:16:15]} 18. Re1 {[%emt 0:00:36]} Bb4 {[%emt 0:04:30]} 19. Re2 {[%emt 0:02:25]} Rac8 {[%emt 0:06:04]} 20. a3 {[%emt 0:01:33]} Bc3 {[%emt 0:05:36]} 21. Bh3 {[%emt 0:00:33]} Rf3 {[%emt 0:17:54]} 22. Bg4 {[%emt 0:08:25]} Rd3 {[%emt 0:01:37]} 23. Rb1 {[%emt 0:05:01]} Bxb2 {[%emt 0:12:24]} 24. Rbxb2 {[%emt 0:03:00]} Rcc3 {[%emt 0:06:10]} 25. Nd2 {[%emt 0:00:12]} Rxd4 {[%emt 0:00:28]} 26. Bxe6+ {[%emt 0:00:15]} Bxe6 {[%emt 0:00:02]} 27. Rxe6 {[%emt 0:00:07]} Kf7 {[%emt 0:04:42]} 28. Re5 {[%emt 0:00:52]} Rxa3 {[%emt 0:00:54]} 29. Ne4 {[%emt 0:02:09]} Nf6 {[%emt 0:03:26]} 30. Ng5+ {[%emt 0:00:18]} Kg6 {[%emt 0:00:16]} 31. Ne6 {[%emt 0:05:12]} Re4 {[%emt 0:01:10]} 32. Nf4+ {[%emt 0:00:16]} Kf7 {[%emt 0:00:26]} 33. Reb5 {[%emt 0:00:14]} Rc4 {[%emt 0:04:04]} 34. Re2 {[%emt 0:00:34]} Ra5 {[%emt 0:02:20]} 35. Rxa5 {[%emt 0:01:52]} bxa5 {[%emt 0:00:01]} 36. Re5 {[%emt 0:00:07]} Ra4 {[%emt 0:02:48]} 37. Rb5 {[%emt 0:00:09]} Nd7 {[%emt 0:00:57]} 38. Rb7 {[%emt 0:00:16]} Ke7 {[%emt 0:01:05]} 39. Rxa7 {[%emt 0:00:07]} Kd6 {[%emt 0:01:15]} 40. Ra6+ {[%emt 0:00:35]} Kc5 {[%emt 0:00:48]} 41. Nd3+ {[%emt 0:01:14]} Kb5 {[%emt 0:00:32]} 42. Ra7 {[%emt 0:00:12]} Rd4 {[%emt 0:00:10]} 43. Nf4 {[%emt 0:01:56]} a4 {[%emt 0:00:36]} 44. Kf1 {[%emt 0:00:08]} Nc5 {[%emt 0:00:35]} 45. Ke2 {[%emt 0:00:20]} g5 {[%emt 0:00:24]} 46. Ng2 {[%emt 0:00:11]} Na6 {[%emt 0:01:07]} 47. Ne3 {[%emt 0:00:28]} Rd6 {[%emt 0:00:29]} 48. Nc2 {[%emt 0:00:18]} Kc4 {[%emt 0:00:21]} 49. Rb7 {[%emt 0:00:45]} Kc3 {[%emt 0:00:39]} 50. Na3 {[%emt 0:00:19]} Re6+ {[%emt 0:00:05]} 51. Kd1 {[%emt 0:00:10]} Nc5 {[%emt 0:00:37]} 52. Nb1+ {[%emt 0:00:41]} Kd4 {[%emt 0:00:35]} 53. Rxh7 {[%emt 0:00:49]} Ne4 {[%emt 0:00:52]} 54. Rd7+ {[%emt 0:04:41]} Kc5 {[%emt 0:00:06]} 55. Rc7+ {[%emt 0:02:33]} Kd4 {[%emt 0:00:39]} 56. f3 {[%emt 0:02:25]} Nc5 {[%emt 0:00:29]} 57. Na3 {[%emt 0:01:40]} Rh6 {[%emt 0:00:40]} 58. Nc2+ {[%emt 0:00:16]} Kc4 {[%emt 0:00:14]} 59. Ne3+ {[%emt 0:01:09]} Kb5 {[%emt 0:00:43]} 60. Rc8 {[%emt 0:01:00]} Rxh2 {[%emt 0:00:18]} 61. Rb8+ {[%emt 0:00:04]} Kc6 {[%emt 0:00:20]} 62. Rc8+ {[%emt 0:00:13]} Kb5 {[%emt 0:00:28]} 63. Rb8+ {[%emt 0:00:05]} Kc6 {[%emt 0:00:54]} 64. Rc8+ {[%emt 0:00:09]} Kb5 {[%emt 0:00:39]} 65. Rb8+ {[%emt 0:00:08]} 1/2-1/2

[Event "Paracin Open 2022"]
[Site "Paracin"]
[Date "2022.07.13"]
[Round "6.15"]
[White "Ohanyan, Emin"]
[Black "Savic, Miodrag R"]
[Result "1-0"]
[ECO "D37"]
[WhiteElo "2354"]
[BlackElo "2418"]
[Annotator "ChessBase"]
[PlyCount "59"]
[EventDate "2022.07.08"]
[EventCountry "SRB"]
[SourceTitle "playchess.com"]
[Source "ChessBase"]
[SourceQuality "1"]
[TimeControl "5400+30"]

1. c4 {[%emt 0:00:02]} e6 {[%emt 0:00:08]} 2. Nc3 {[%emt 0:01:15]} d5 {[%emt 0:00:13]} 3. d4 {[%emt 0:00:07]} Nf6 {[%emt 0:00:53]} 4. Nf3 {[%emt 0:00:04]} Be7 {[%emt 0:00:09]} 5. Bf4 {[%emt 0:00:07]} O-O {[%emt 0:03:05]} 6. e3 {[%emt 0:00:03]} a6 {[%emt 0:02:40]} 7. Rc1 {[%emt 0:01:03]} h6 {[%emt 0:05:12]} 8. cxd5 {[%emt 0:30:21]} exd5 {[%emt 0:00:48]} 9. Bd3 {[%emt 0:03:56]} Bd6 {[%emt 0:10:53]} 10. Ne5 {[%emt 0:05:12]} Re8 {[%emt 0:02:05]} 11. O-O {[%emt 0:03:21]} Nbd7 {[%emt 0:08:46]} 12. Nxd7 {[%emt 0:03:47]} Qxd7 {[%emt 0:00:36]} 13. Qf3 {[%emt 0:02:59]} Bxf4 {[%emt 0:03:35]} 14. Qxf4 {[%emt 0:02:24]} Re7 {[%emt 0:01:48]} 15. h3 {[%emt 0:09:28]} Qe8 {[%emt 0:04:53]} 16. b4 {[%emt 0:04:32]} Bd7 {[%emt 0:07:00]} 17. Qf3 {[%emt 0:03:24]} Be6 {[%emt 0:05:36]} 18. a4 {[%emt 0:00:22]} Rd8 {[%emt 0:01:44]} 19. b5 {[%emt 0:05:03]} axb5 {[%emt 0:00:40]} 20. axb5 {[%emt 0:00:57]} Rd6 {[%emt 0:02:14]} 21. Ra1 {[%emt 0:02:16]} Bd7 {[%emt 0:08:22]} 22. Ra7 {[%emt 0:03:00]} Ne4 {[%emt 0:00:37]} 23. Bxe4 {[%emt 0:01:31]} dxe4 {[%emt 0:00:02]} 24. Qh5 {[%emt 0:02:28]} Bc8 {[%emt 0:05:52]} 25. Ra8 {[%emt 0:00:47]} Kh7 {[%emt 0:03:26]} 26. Rfa1 {[%emt 0:01:20]} Rg6 {[%emt 0:07:12]} 27. Rb8 {[%emt 0:05:32]} Qd7 {[%emt 0:00:13]} 28. Raa8 {[%emt 0:01:03]} Rg5 {[%emt 0:00:49]} 29. Qh4 {[%emt 0:00:28]} Qxh3 {[%emt 0:00:32]} 30. Qxg5 {[%emt 0:00:59]} 1-0

[Event "Paracin Open 2022"]
[Site "Paracin"]
[Date "2022.07.13"]
[Round "6.16"]
[White "Milosevic, Milos"]
[Black "Amartuvshin, Ganzorig"]
[Result "0-1"]
[ECO "B48"]
[WhiteElo "2288"]
[BlackElo "2409"]
[Annotator "ChessBase"]
[PlyCount "78"]
[EventDate "2022.07.08"]
[EventCountry "SRB"]
[SourceTitle "playchess.com"]
[Source "ChessBase"]
[SourceQuality "1"]
[TimeControl "5400+30"]

1. e4 {[%emt 0:00:01]} c5 {[%emt 0:00:06]} 2. Nf3 {[%emt 0:00:02]} e6 {[%emt 0:00:07]} 3. d4 {[%emt 0:00:03]} cxd4 {[%emt 0:00:05]} 4. Nxd4 {[%emt 0:00:03]} Nc6 {[%emt 0:00:07]} 5. Nc3 {[%emt 0:00:09]} Qc7 {[%emt 0:00:18]} 6. Be3 {[%emt 0:00:06]} a6 {[%emt 0:00:10]} 7. Qd2 {[%emt 0:00:04]} Nf6 {[%emt 0:00:29]} 8. f4 {[%emt 0:00:04]} Bb4 {[%emt 0:00:38]} 9. Bd3 {[%emt 0:00:05]} b5 {[%emt 0:01:26]} 10. a3 {[%emt 0:00:42]} Be7 {[%emt 0:00:29]} 11. e5 {[%emt 0:01:36]} Ng4 {[%emt 0:00:11]} 12. Nxc6 {[%emt 0:00:17]} dxc6 {[%emt 0:00:26]} 13. Ne4 {[%emt 0:00:04]} Nxe3 {[%emt 0:01:11]} 14. Qxe3 {[%emt 0:00:02]} Bb7 {[%emt 0:15:05]} 15. O-O-O {[%emt 0:08:10]} O-O-O {[%emt 0:00:28]} 16. Be2 {[%emt 0:01:35]} c5 {[%emt 0:02:10]} 17. Bf3 {[%emt 0:00:18]} h6 {[%emt 0:03:07]} 18. Ng3 {[%emt 0:04:50]} Bxf3 {[%emt 0:27:12]} 19. Qxf3 {[%emt 0:00:13]} Qb7 {[%emt 0:01:04]} 20. Ne4 {[%emt 0:05:13]} g6 {[%emt 0:02:15]} 21. g4 {[%emt 0:04:29]} Rd5 {[%emt 0:07:18]} 22. Rxd5 {[%emt 0:00:17]} exd5 {[%emt 0:00:41]} 23. Ng3 {[%emt 0:00:22]} d4 {[%emt 0:01:42]} 24. Qxb7+ {[%emt 0:00:44]} Kxb7 {[%emt 0:00:16]} 25. h4 {[%emt 0:03:03]} Kc6 {[%emt 0:01:25]} 26. h5 {[%emt 0:02:39]} g5 {[%emt 0:00:43]} 27. Nf5 {[%emt 0:01:52]} Bd8 {[%emt 0:00:14]} 28. b4 {[%emt 0:17:55]} cxb4 {[%emt 0:08:30]} 29. axb4 {[%emt 0:00:07]} gxf4 {[%emt 0:00:15]} 30. Rd1 {[%emt 0:00:17]} Kd5 {[%emt 0:04:13]} 31. Nxd4 {[%emt 0:02:36]} Ke4 {[%emt 0:01:06]} 32. Nf5 {[%emt 0:00:39]} Bg5 {[%emt 0:11:20]} 33. Nd6+ {[%emt 0:42:02]} Ke3 {[%emt 0:00:09]} 34. Nxf7 {[%emt 0:00:23]} f3 {[%emt 0:00:20]} 35. Rd3+ {[%emt 0:06:24]} Ke2+ {[%emt 0:00:06]} 36. Nxg5 {[%emt 0:00:13]} hxg5 {[%emt 0:00:04]} 37. Rd2+ {[%emt 0:00:03]} Kf1 {[%emt 0:00:56]} 38. e6 {[%emt 0:00:47]} f2 {[%emt 0:00:14]} 39. e7 {[%emt 0:00:49]} Re8 {[%emt 0:00:13]} 0-1

[Event "Paracin Open 2022"]
[Site "Paracin"]
[Date "2022.07.13"]
[Round "6.17"]
[White "Kairbekova, Amina"]
[Black "Sapenov, Daniyal"]
[Result "1/2-1/2"]
[ECO "B12"]
[WhiteElo "2133"]
[BlackElo "2362"]
[Annotator "ChessBase"]
[PlyCount "119"]
[EventDate "2022.07.08"]
[EventCountry "SRB"]
[SourceTitle "playchess.com"]
[Source "ChessBase"]
[SourceQuality "1"]
[TimeControl "5400+30"]

1. e4 {[%emt 0:00:03]} c6 {[%emt 0:00:06]} 2. d4 {[%emt 0:00:04]} d5 {[%emt 0:00:05]} 3. e5 {[%emt 0:00:03]} Bf5 {[%emt 0:00:06]} 4. h4 {[%emt 0:00:04]} h5 {[%emt 0:00:06]} 5. Bd3 {[%emt 0:00:05]} Bxd3 {[%emt 0:00:07]} 6. Qxd3 {[%emt 0:00:04]} Qa5+ {[%emt 0:00:09]} 7. Nd2 {[%emt 0:00:08]} e6 {[%emt 0:00:07]} 8. Ngf3 {[%emt 0:00:08]} Nh6 {[%emt 0:00:19]} 9. O-O {[%emt 0:00:13]} Nf5 {[%emt 0:00:09]} 10. Nb3 {[%emt 0:00:08]} Qb5 {[%emt 0:03:42]} 11. Qd1 {[%emt 0:01:00]} c5 {[%emt 0:01:16]} 12. a4 {[%emt 0:00:17]} Qb6 {[%emt 0:00:38]} 13. dxc5 {[%emt 0:01:20]} Bxc5 {[%emt 0:01:17]} 14. Nxc5 {[%emt 0:00:07]} Qxc5 {[%emt 0:00:06]} 15. c3 {[%emt 0:00:16]} Nc6 {[%emt 0:13:04]} 16. Bg5 {[%emt 0:03:16]} Qb6 {[%emt 0:03:02]} 17. b3 {[%emt 0:10:36]} Rc8 {[%emt 0:02:37]} 18. Rc1 {[%emt 0:01:35]} Rc7 {[%emt 0:05:55]} 19. Re1 {[%emt 0:04:10]} Rd7 {[%emt 0:02:36]} 20. Nd4 {[%emt 0:05:42]} Nfxd4 {[%emt 0:09:05]} 21. cxd4 {[%emt 0:00:07]} Rc7 {[%emt 0:00:06]} 22. Re3 {[%emt 0:03:27]} Kd7 {[%emt 0:04:49]} 23. Rec3 {[%emt 0:03:12]} Kc8 {[%emt 0:02:54]} 24. Rc5 {[%emt 0:05:13]} Kb8 {[%emt 0:13:03]} 25. Bd2 {[%emt 0:19:46]} Rhc8 {[%emt 0:03:34]} 26. a5 {[%emt 0:09:33]} Qa6 {[%emt 0:00:40]} 27. Be1 {[%emt 0:01:40]} b6 {[%emt 0:01:40]} 28. axb6 {[%emt 0:01:40]} axb6 {[%emt 0:00:13]} 29. R5c3 {[%emt 0:10:13]} g6 {[%emt 0:00:35]} 30. Ra1 {[%emt 0:03:11]} Qb5 {[%emt 0:09:09]} 31. Ra4 {[%emt 0:00:18]} Na7 {[%emt 0:07:48]} 32. Rxc7 {[%emt 0:00:21]} Rxc7 {[%emt 0:00:07]} 33. Bb4 {[%emt 0:00:08]} Nc8 {[%emt 0:00:08]} 34. Qa1 {[%emt 0:02:47]} Qc6 {[%emt 0:01:02]} 35. Kh2 {[%emt 0:00:53]} Ra7 {[%emt 0:00:32]} 36. Ra6 {[%emt 0:03:35]} Kb7 {[%emt 0:01:32]} 37. Rxa7+ {[%emt 0:00:35]} Nxa7 {[%emt 0:00:02]} 38. Qd1 {[%emt 0:00:54]} Qd7 {[%emt 0:01:32]} 39. Qf3 {[%emt 0:00:16]} Nc6 {[%emt 0:00:12]} 40. Bc3 {[%emt 0:02:30]} Qe7 {[%emt 0:01:39]} 41. Qf4 {[%emt 0:00:39]} b5 {[%emt 0:03:24]} 42. f3 {[%emt 0:00:34]} Kb6 {[%emt 0:00:53]} 43. Be1 {[%emt 0:00:23]} Ka6 {[%emt 0:04:21]} 44. Qc1 {[%emt 0:01:26]} Kb7 {[%emt 0:00:35]} 45. Qf4 {[%emt 0:00:34]} Ka6 {[%emt 0:01:11]} 46. g4 {[%emt 0:01:56]} Qa7 {[%emt 0:01:27]} 47. gxh5 {[%emt 0:00:26]} gxh5 {[%emt 0:00:05]} 48. Bf2 {[%emt 0:00:46]} Na5 {[%emt 0:01:10]} 49. Qc1 {[%emt 0:01:26]} Qd7 {[%emt 0:01:26]} 50. Be1 {[%emt 0:01:13]} Nc6 {[%emt 0:00:13]} 51. Qc5 {[%emt 0:00:13]} Ne7 {[%emt 0:01:20]} 52. Bb4 {[%emt 0:01:14]} Nf5 {[%emt 0:00:09]} 53. Qf8 {[%emt 0:00:23]} Kb7 {[%emt 0:03:12]} 54. Bc5 {[%emt 0:02:00]} Nxh4 {[%emt 0:00:31]} 55. Kg3 {[%emt 0:01:00]} Nf5+ {[%emt 0:00:41]} 56. Kf4 {[%emt 0:00:12]} h4 {[%emt 0:00:20]} 57. b4 {[%emt 0:00:19]} Kc7 {[%emt 0:00:47]} 58. Qa8 {[%emt 0:01:14]} Qc6 {[%emt 0:00:38]} 59. Qf8 {[%emt 0:00:51]} Qd7 {[%emt 0:00:14]} 60. Qa8 {[%emt 0:00:35]} 1/2-1/2

[Event "Paracin Open 2022"]
[Site "Paracin"]
[Date "2022.07.13"]
[Round "6.18"]
[White "Song, Raymond"]
[Black "Radojicic, Aleksandar M"]
[Result "1-0"]
[ECO "A59"]
[WhiteElo "2499"]
[BlackElo "2188"]
[Annotator "ChessBase"]
[PlyCount "147"]
[EventDate "2022.07.08"]
[EventCountry "SRB"]
[SourceTitle "playchess.com"]
[Source "ChessBase"]
[SourceQuality "1"]
[TimeControl "5400+30"]

1. d4 {[%emt 0:00:03]} Nf6 {[%emt 0:07:22]} 2. c4 {[%emt 0:00:09]} c5 {[%emt 0:00:05]} 3. d5 {[%emt 0:00:05]} b5 {[%emt 0:00:05]} 4. cxb5 {[%emt 0:00:09]} a6 {[%emt 0:00:03]} 5. bxa6 {[%emt 0:00:08]} g6 {[%emt 0:00:11]} 6. Nc3 {[%emt 0:00:11]} Bxa6 {[%emt 0:00:07]} 7. e4 {[%emt 0:00:21]} Bxf1 {[%emt 0:00:08]} 8. Kxf1 {[%emt 0:00:03]} d6 {[%emt 0:00:06]} 9. g3 {[%emt 0:00:32]} Bg7 {[%emt 0:00:08]} 10. Kg2 {[%emt 0:00:06]} O-O {[%emt 0:00:23]} 11. Nf3 {[%emt 0:00:05]} Nbd7 {[%emt 0:01:35]} 12. a4 {[%emt 0:00:58]} Qb6 {[%emt 0:01:53]} 13. Qc2 {[%emt 0:03:03]} Rfb8 {[%emt 0:00:51]} 14. Nb5 {[%emt 0:02:49]} Ne8 {[%emt 0:01:37]} 15. Ra3 {[%emt 0:15:08]} Nc7 {[%emt 0:15:57]} 16. Nxc7 {[%emt 0:00:30]} Qxc7 {[%emt 0:00:03]} 17. b3 {[%emt 0:00:07]} Qb7 {[%emt 0:08:21]} 18. Bd2 {[%emt 0:01:45]} e6 {[%emt 0:34:40]} 19. dxe6 {[%emt 0:02:46]} fxe6 {[%emt 0:00:57]} 20. Re1 {[%emt 0:06:58]} d5 {[%emt 0:02:14]} 21. a5 {[%emt 0:02:12]} d4 {[%emt 0:06:52]} 22. Qc4 {[%emt 0:02:15]} Ra6 {[%emt 0:03:00]} 23. h4 {[%emt 0:02:50]} Qb5 {[%emt 0:01:42]} 24. Rc1 {[%emt 0:17:47]} Qxc4 {[%emt 0:01:36]} 25. Rxc4 {[%emt 0:00:02]} Rb5 {[%emt 0:02:02]} 26. Ne1 {[%emt 0:03:45]} Ne5 {[%emt 0:01:29]} 27. Rca4 {[%emt 0:02:49]} Bf8 {[%emt 0:01:10]} 28. f4 {[%emt 0:00:13]} c4 {[%emt 0:03:30]} 29. Ra1 {[%emt 0:06:22]} c3 {[%emt 0:00:35]} 30. fxe5 {[%emt 0:01:36]} cxd2 {[%emt 0:00:03]} 31. Nf3 {[%emt 0:00:04]} Bb4 {[%emt 0:01:50]} 32. Rd1 {[%emt 0:10:09]} Raxa5 {[%emt 0:01:05]} 33. Nxd2 {[%emt 0:01:47]} Rxa4 {[%emt 0:01:57]} 34. bxa4 {[%emt 0:00:01]} Rxe5 {[%emt 0:00:50]} 35. Nc4 {[%emt 0:00:03]} Rc5 {[%emt 0:01:47]} 36. Rxd4 {[%emt 0:00:05]} Bc3 {[%emt 0:00:45]} 37. Rd8+ {[%emt 0:00:04]} Kg7 {[%emt 0:00:15]} 38. Rd7+ {[%emt 0:02:35]} Kg8 {[%emt 0:00:23]} 39. Nd6 {[%emt 0:02:47]} Be1 {[%emt 0:01:51]} 40. Ne8 {[%emt 0:04:53]} Rc2+ {[%emt 0:00:17]} 41. Kh3 {[%emt 0:00:16]} Rc3 {[%emt 0:00:42]} 42. Nf6+ {[%emt 0:00:04]} Kf8 {[%emt 0:00:03]} 43. Nxh7+ {[%emt 0:00:04]} Kg8 {[%emt 0:00:35]} 44. Kg4 {[%emt 0:01:45]} Rxg3+ {[%emt 0:00:27]} 45. Kf4 {[%emt 0:00:00]} Rg2 {[%emt 0:00:49]} 46. Nf6+ {[%emt 0:00:59]} Kf8 {[%emt 0:00:04]} 47. Ke5 {[%emt 0:00:11]} Bxh4 {[%emt 0:00:30]} 48. Kxe6 {[%emt 0:00:10]} Bxf6 {[%emt 0:00:16]} 49. Kxf6 {[%emt 0:00:05]} Ke8 {[%emt 0:00:06]} 50. Re7+ {[%emt 0:00:54]} Kd8 {[%emt 0:00:17]} 51. Rg7 {[%emt 0:00:11]} Ra2 {[%emt 0:00:17]} 52. Ra7 {[%emt 0:01:07]} Re2 {[%emt 0:00:09]} 53. e5 {[%emt 0:00:04]} g5 {[%emt 0:00:05]} 54. a5 {[%emt 0:02:44]} g4 {[%emt 0:00:11]} 55. Rg7 {[%emt 0:00:43]} Rf2+ {[%emt 0:00:16]} 56. Ke6 {[%emt 0:00:04]} Ra2 {[%emt 0:00:09]} 57. Rg8+ {[%emt 0:02:21]} Kc7 {[%emt 0:00:04]} 58. Rxg4 {[%emt 0:00:06]} Rxa5 {[%emt 0:00:12]} 59. Rd4 {[%emt 0:00:17]} Rc5 {[%emt 0:02:44]} 60. Kf6 {[%emt 0:00:16]} Rc1 {[%emt 0:00:04]} 61. Ke7 {[%emt 0:00:24]} Kc6 {[%emt 0:00:58]} 62. e6 {[%emt 0:00:19]} Rf1 {[%emt 0:01:19]} 63. Ke8 {[%emt 0:00:39]} Kc7 {[%emt 0:00:41]} 64. e7 {[%emt 0:00:13]} Re1 {[%emt 0:00:51]} 65. Rd7+ {[%emt 0:01:59]} Kc8 {[%emt 0:00:15]} 66. Rd2 {[%emt 0:00:53]} Kc7 {[%emt 0:00:37]} 67. Rc2+ {[%emt 0:00:30]} Kb7 {[%emt 0:01:02]} 68. Rc4 {[%emt 0:00:08]} Rf1 {[%emt 0:00:18]} 69. Kd7 {[%emt 0:00:11]} Rd1+ {[%emt 0:00:04]} 70. Ke6 {[%emt 0:00:04]} Re1+ {[%emt 0:00:12]} 71. Kd6 {[%emt 0:00:10]} Re2 {[%emt 0:00:09]} 72. Rc5 {[%emt 0:00:05]} Rd2+ {[%emt 0:00:08]} 73. Ke6 {[%emt 0:00:14]} Kb6 {[%emt 0:00:09]} 74. Re5 {[%emt 0:00:06]} 1-0